bitfinex/quotes_BTCUSD_20250620
["timestamp","ask_amount","ask_price","bid_price","bid_amount"]
[1750440792474,0.001,102860.0,102850.0,0.54397818]
[1750440792693,0.00972034,102870.0,102860.0,0.28680375]
[1750440792906,0.44110407,102890.0,102870.0,0.28737173]
[1750440793125,0.44110407,102890.0,102860.0,0.21388208]
[1750440793126,0.01944096,102870.0,102860.0,0.21388208]
[1750440793340,0.01944096,102870.0,102860.0,0.28739337]
[1750440793547,0.02916168,102870.0,102860.0,0.28739337]
[1750440793761,0.03888287,102870.0,102860.0,0.28739337]
[1750440793974,0.23330301,102870.0,102860.0,0.22360422]
[1750440794184,0.23330301,102870.0,102860.0,0.22760422]
[1750440794389,0.21386205,102870.0,102860.0,0.009]
[1750440794599,0.21386205,102870.0,102860.0,0.01872195]
[1750440794821,0.21386205,102870.0,102860.0,0.21316099]
[1750440795030,0.00972062,102870.0,102860.0,0.24232561]
[1750440795235,0.03888277,102870.0,102860.0,0.24232561]
[1750440795652,0.03888277,102870.0,102860.0,0.23332561]
[1750440795861,0.03888277,102870.0,102860.0,0.23432561]
[1750440796085,0.23330291,102870.0,102860.0,0.2353257]
[1750440796274,0.23330291,102870.0,102860.0,0.24504699]
[1750440796483,0.23330291,102870.0,102860.0,0.21588275]
[1750440796694,0.3531983,102870.0,102860.0,0.002]
[1750440796908,0.31031088,102870.0,102860.0,0.002]
[1750440797543,0.55643088,102870.0,102860.0,0.002]
[1750440797759,0.89643088,102870.0,102860.0,0.002]
[1750440798210,0.89526088,102870.0,102860.0,0.002]
[1750440798412,0.63941988,102870.0,102860.0,0.20616089]
[1750440798637,0.63941988,102870.0,102860.0,0.002]
[1750440799058,0.34,102870.0,102860.0,0.22560403]
[1750440799312,0.56358173,102870.0,102860.0,0.24957265]
[1750440799524,0.57330264,102870.0,102860.0,0.21707265]
[1750440799738,0.58302364,102870.0,102860.0,0.22679412]
[1750440799998,0.0486035,102870.0,102860.0,0.2365155]
[1750440800199,0.23330339,102870.0,102860.0,0.22679422]
[1750440800650,0.03888325,102870.0,102860.0,0.2365156]
[1750440800864,0.09527893,102870.0,102860.0,0.03116471]
[1750440801080,0.19438407,102890.0,102880.0,0.20412111]
[1750440801081,0.53438407,102890.0,102880.0,0.20412111]
[1750440801297,0.53438407,102890.0,102880.0,0.19440124]
[1750440801298,0.65881758,102890.0,102880.0,0.19440124]
[1750440801507,0.63938039,102890.0,102870.0,0.21505073]
[1750440801718,0.21384097,102880.0,102870.0,0.19442014]
[1750440801918,0.21384097,102880.0,102870.0,0.20414095]
[1750440802340,0.21384097,102880.0,102870.0,0.21386167]
[1750440802566,0.21384097,102880.0,102870.0,0.22358229]
[1750440802996,0.21484097,102880.0,102870.0,0.22358229]
[1750440803642,0.21584097,102880.0,102870.0,0.23330282]
[1750440803854,0.01171921,102880.0,102870.0,0.24421316]
[1750440804070,0.002,102880.0,102870.0,0.30761316]
[1750440804506,0.002,102880.0,102870.0,1.70487002]
[1750440804934,0.001,102880.0,102870.0,1.00283294]
[1750440805363,0.001,102880.0,102870.0,1.71187002]
[1750440805826,0.00971732,102900.0,102890.0,0.28887855]
[1750440806036,0.01943378,102910.0,102900.0,0.22351682]
[1750440806239,0.46873557,102910.0,102900.0,0.22351701]
[1750440806464,0.45901882,102910.0,102900.0,0.20408152]
[1750440806672,0.45901882,102910.0,102900.0,0.2137994]
[1750440806887,0.44930179,102910.0,102900.0,0.21331343]
[1750440807094,0.20406179,102910.0,102900.0,0.21331343]
[1750440807300,0.20406179,102910.0,102900.0,0.22303131]
[1750440807508,0.20406179,102910.0,102900.0,0.21331343]
[1750440808539,0.19434457,102910.0,102900.0,0.20359545]
[1750440808751,0.22351729,102900.0,102890.0,0.53399884]
[1750440809170,0.03887135,102900.0,102890.0,0.29859729]
[1750440809425,0.24295297,102900.0,102890.0,0.29859729]
[1750440809613,0.00971958,102880.0,102870.0,0.60999941]
[1750440809834,0.01943935,102880.0,102870.0,0.2796011]
[1750440810049,0.5635823,102870.0,102860.0,0.20416085]
[1750440810274,0.00972147,102860.0,102850.0,0.25412548]
[1750440810489,0.03888618,102860.0,102850.0,0.28756548]
[1750440810714,0.03888609,102860.0,102850.0,0.28756548]
[1750440810926,0.23332579,102860.0,102850.0,0.24554325]
[1750440811138,0.23332579,102860.0,102850.0,0.25526567]
[1750440811359,0.22360432,102860.0,102850.0,0.20428074]
[1750440811584,0.22360432,102860.0,102850.0,0.21400344]
[1750440811807,0.21388275,102860.0,102850.0,0.0001]
[1750440812059,0.21388275,102860.0,102850.0,0.21400335]
[1750440812267,0.53559014,102870.0,102860.0,0.2041608]
[1750440812268,0.77902014,102870.0,102860.0,0.2041608]
[1750440812476,0.62969907,102870.0,102850.0,0.22372482]
[1750440812686,0.21388208,102860.0,102850.0,0.26672045]
[1750440812924,0.21388208,102860.0,102850.0,0.21900363]
[1750440812925,0.21388255,102860.0,102850.0,0.21900363]
[1750440813162,0.01944304,102860.0,102850.0,0.27178857]
[1750440813412,0.22360393,102860.0,102850.0,0.30288857]
[1750440813637,0.22360393,102860.0,102850.0,0.29316624]
[1750440813846,0.21388255,102860.0,102850.0,0.0041]
[1750440814053,0.21388255,102860.0,102850.0,0.0091]
[1750440814280,0.20416089,102860.0,102850.0,0.0091]
[1750440814490,0.29943982,102860.0,102850.0,0.0091]
[1750440814756,0.30060982,102860.0,102850.0,0.0091]
[1750440814971,0.29943982,102860.0,102850.0,0.0091]
[1750440815183,0.29943982,102860.0,102850.0,0.0051]
[1750440815599,0.20416089,102860.0,102850.0,0.0061]
[1750440815815,0.20416089,102860.0,102850.0,0.0011]
[1750440816028,0.20416089,102860.0,102850.0,0.0021]
[1750440816237,0.19443904,102860.0,102850.0,0.00324]
[1750440816454,0.28971797,102860.0,102850.0,0.0021]
[1750440816868,0.04353483,102860.0,102850.0,0.0021]
[1750440817074,0.23797387,102860.0,102850.0,0.0021]
[1750440818995,0.23914387,102860.0,102850.0,0.0021]
[1750440819416,0.57914387,102860.0,102850.0,0.0021]
[1750440819630,0.61024387,102860.0,102850.0,0.0021]
[1750440820081,0.57914387,102860.0,102850.0,0.0021]
[1750440820925,0.57914387,102860.0,102850.0,0.0011]
[1750440821363,0.58014387,102860.0,102850.0,0.0011]
[1750440821568,1.16361372,102860.0,102850.0,0.0011]
[1750440821805,1.16261372,102860.0,102850.0,0.0001]
[1750440822013,1.06734387,102860.0,102850.0,0.0001]
[1750440822234,1.07234387,102860.0,102850.0,0.0001]
[1750440822483,0.58414387,102860.0,102850.0,0.0001]
[1750440823520,0.82681387,102860.0,102850.0,0.0001]
[1750440823747,0.5491608,102860.0,102850.0,0.0001]
[1750440823966,0.2091608,102860.0,102850.0,0.06474]
[1750440824184,0.22860412,102860.0,102850.0,0.06474]
[1750440824400,0.20916023,102860.0,102850.0,0.25919794]
[1750440824609,0.20916023,102860.0,102850.0,0.27864325]
[1750440824610,0.20916014,102860.0,102850.0,0.27864325]
[1750440824825,0.23832494,102860.0,102850.0,0.06474]
[1750440825092,0.22860384,102860.0,102850.0,0.06474]
[1750440825312,0.21688246,102860.0,102850.0,0.06474]
[1750440825533,0.21388246,102860.0,102850.0,0.06474]
[1750440825754,0.21388246,102860.0,102850.0,0.06874]
[1750440825955,0.21388246,102860.0,102850.0,0.0726]
[1750440826593,0.21388246,102860.0,102850.0,0.0406]
[1750440826804,0.21388246,102860.0,102850.0,0.0091]
[1750440827236,0.21388246,102860.0,102850.0,0.0041]
[1750440827451,0.21388246,102860.0,102850.0,0.0011]
[1750440827678,0.30916139,102860.0,102850.0,0.0021]
[1750440827896,5.83847865,102860.0,102850.0,0.0021]
[1750440828127,6.00106729,102860.0,102850.0,0.00044]
[1750440828373,5.70738064,102850.0,102840.0,0.0001]
[1750440828590,5.65738064,102850.0,102840.0,0.0001]
[1750440828804,5.70738064,102850.0,102840.0,0.0001]
[1750440829061,5.84792942,102850.0,102840.0,0.0001]
[1750440829279,5.96247027,102850.0,102840.0,0.0001]
[1750440829492,0.55874135,102840.0,102830.0,0.0301]
[1750440829723,5.85452028,102840.0,102830.0,0.0301]
[1750440829933,5.80452028,102840.0,102830.0,0.0301]
[1750440830150,5.85452028,102840.0,102830.0,0.0301]
[1750440830616,0.54426009,102810.0,102800.0,0.0001]
[1750440831052,0.64926541,102810.0,102800.0,0.07895895]
[1750440831478,0.55398648,102810.0,102800.0,0.07895895]
[1750440831702,0.55398648,102810.0,102800.0,0.00124]
[1750440832556,0.55398648,102810.0,102800.0,0.00824]
[1750440832979,0.6288366,102810.0,102800.0,0.00824]
[1750440833195,0.55398648,102810.0,102800.0,0.00824]
[1750440833842,1.13746541,102810.0,102800.0,0.0071]
[1750440837493,1.19976541,102810.0,102800.0,0.0071]
[1750440837709,1.27748436,102810.0,102800.0,0.0071]
[1750440837960,1.29503526,102810.0,102800.0,0.0071]
[1750440838176,1.19976541,102810.0,102800.0,0.0071]
[1750440838811,1.13746541,102810.0,102800.0,0.0071]
[1750440839219,0.42727794,102810.0,102800.0,0.0071]
[1750440839433,0.43580443,102810.0,102800.0,0.0071]
[1750440840893,0.46860443,102810.0,102800.0,0.0071]
[1750440841106,0.56310368,102810.0,102800.0,0.0071]
[1750440841336,0.93410368,102810.0,102800.0,0.0071]
[1750440841783,0.77580443,102810.0,102800.0,0.0071]
[1750440842001,0.13626541,102810.0,102800.0,0.27219168]
[1750440842209,0.13626541,102810.0,102800.0,0.30239168]
[1750440842424,0.13626541,102810.0,102800.0,1.29839168]
[1750440842850,0.13626541,102810.0,102800.0,1.29539168]
[1750440843288,0.17044402,102810.0,102800.0,1.29539168]
[1750440843495,0.17044392,102810.0,102800.0,1.29539168]
[1750440843923,0.16844402,102810.0,102800.0,1.29539168]
[1750440844129,0.16844402,102810.0,102800.0,1.28866472]
[1750440844410,0.13926541,102810.0,102800.0,1.30811873]
[1750440844621,0.35025208,102810.0,102800.0,1.25948252]
[1750440844828,0.15571848,102810.0,102800.0,1.2789371]
[1750440845042,0.15571848,102810.0,102800.0,1.28866406]
[1750440845273,0.35025208,102810.0,102800.0,1.27420995]
[1750440845486,0.16544449,102810.0,102800.0,1.29366434]
[1750440845722,0.16544449,102810.0,102800.0,1.3033913]
[1750440845929,0.35997866,102810.0,102800.0,1.28393729]
[1750440846130,0.16544506,102810.0,102800.0,1.30339149]
[1750440846334,0.13626541,102810.0,102800.0,1.30339149]
[1750440846540,0.14599123,102810.0,102800.0,1.30339149]
[1750440846745,0.21396679,102820.0,102810.0,0.85400877]
[1750440846962,0.21396679,102820.0,102810.0,1.12129886]
[1750440847171,0.21396679,102820.0,102810.0,0.92676545]
[1750440847815,0.21396679,102820.0,102810.0,1.14075202]
[1750440848031,0.21396679,102820.0,102810.0,1.15047822]
[1750440848248,0.01945023,102820.0,102810.0,1.16020423]
[1750440848455,0.03890102,102820.0,102810.0,1.13102496]
[1750440848661,0.21396566,102820.0,102810.0,0.92676545]
[1750440848864,0.20424031,102820.0,102810.0,0.91803877]
[1750440849112,0.20424031,102820.0,102810.0,0.92776535]
[1750440849309,0.20424031,102820.0,102810.0,1.13302544]
[1750440849516,0.20424031,102820.0,102810.0,0.91903877]
[1750440849725,0.20424031,102820.0,102810.0,1.12329895]
[1750440849930,0.19449685,102830.0,102820.0,0.99027465]
[1750440851613,0.19549685,102830.0,102820.0,0.99027465]
[1750440852040,0.001,102830.0,102820.0,1.25171933]
[1750440852249,0.001,102830.0,102820.0,1.28089538]
[1750440852250,0.02044815,102830.0,102820.0,1.28089538]
[1750440852453,0.02044805,102830.0,102820.0,1.28089538]
[1750440852791,0.03117236,102830.0,102820.0,1.28089538]
[1750440853233,0.01172393,102830.0,102820.0,1.28089538]
[1750440853428,0.001,102830.0,102820.0,1.37617431]
[1750440853700,0.001,102830.0,102820.0,1.37917431]
[1750440853915,0.001,102830.0,102820.0,2.43575224]
[1750440854120,0.0291666,102850.0,102840.0,0.28504723]
[1750440854339,0.0388893,102850.0,102840.0,0.54599405]
[1750440854546,0.23334781,102850.0,102840.0,0.26683059]
[1750440854754,0.03888987,102850.0,102840.0,0.55571742]
[1750440854966,0.03888987,102850.0,102840.0,0.56544069]
[1750440855171,0.2430707,102850.0,102840.0,0.25710685]
[1750440855376,0.23334856,102850.0,102840.0,0.55567761]
[1750440855582,0.02044447,102850.0,102840.0,0.56539994]
[1750440855764,0.03016698,102850.0,102840.0,0.56539994]
[1750440856004,0.23434772,102850.0,102840.0,0.54595377]
[1750440856205,0.23434847,102850.0,102840.0,0.54551424]
[1750440856438,0.22562558,102850.0,102840.0,0.5552377]
[1750440856647,0.22562558,102850.0,102840.0,0.56496107]
[1750440856861,0.03116764,102850.0,102840.0,0.57468425]
[1750440857050,0.22562548,102850.0,102840.0,0.56496107]
[1750440857254,0.22562548,102850.0,102840.0,0.51496107]
[1750440857459,0.22562548,102850.0,102840.0,0.49551424]
[1750440857763,0.20618064,102850.0,102840.0,0.34131384]
[1750440857969,0.20618064,102850.0,102840.0,0.26683031]
[1750440858155,0.20618064,102850.0,102840.0,0.28627742]
[1750440858156,0.22562595,102850.0,102840.0,0.28627742]
[1750440858485,0.03116801,102850.0,102840.0,0.28627742]
[1750440858699,0.22562595,102850.0,102840.0,0.27655405]
[1750440858911,0.19449258,102860.0,102850.0,0.77437405]
[1750440860014,0.19749258,102860.0,102850.0,0.77437405]
[1750440861065,0.00605,102860.0,102850.0,1.06122953]
[1750440861275,0.03521423,102860.0,102850.0,1.32946953]
[1750440861492,0.02549323,102860.0,102850.0,1.03206199]
[1750440861704,0.22965412,102860.0,102850.0,1.02983]
[1750440861921,0.20721089,102860.0,102850.0,0.77437405]
[1750440862135,0.32724729,102860.0,102850.0,0.77437405]
[1750440862341,6.06046814,102860.0,102850.0,0.77537405]
[1750440862560,6.10102812,102860.0,102850.0,0.77537405]
[1750440862777,6.08323591,102860.0,102850.0,0.77637405]
[1750440862992,6.10102774,102860.0,102850.0,0.77637405]
[1750440863219,6.10102774,102860.0,102850.0,0.77537405]
[1750440863220,6.10102784,102860.0,102850.0,0.77537405]
[1750440863432,6.10202784,102860.0,102850.0,0.77537405]
[1750440863650,6.10202792,102860.0,102850.0,0.77537405]
[1750440863852,6.10102792,102860.0,102850.0,0.77437405]
[1750440864061,6.13023892,102860.0,102850.0,0.77437405]
[1750440864276,0.0194489,102830.0,102820.0,0.99027465]
[1750440864498,5.35922359,102830.0,102820.0,0.99027465]
[1750440864719,0.30922359,102830.0,102820.0,0.99027465]
[1750440864925,5.45449344,102830.0,102820.0,0.99027465]
[1750440865146,5.35922359,102830.0,102820.0,0.99027465]
[1750440865865,5.35922359,102830.0,102820.0,0.99527465]
[1750440866099,5.35922359,102830.0,102820.0,0.99827465]
[1750440867520,5.42472359,102830.0,102820.0,0.99827465]
[1750440868149,4.73394759,102830.0,102820.0,0.99827465]
[1750440868353,0.48038466,102830.0,102820.0,0.99649465]
[1750440868553,0.48038466,102830.0,102820.0,0.99027465]
[1750440868800,0.48138466,102830.0,102820.0,0.99027465]
[1750440869000,0.48238466,102830.0,102820.0,0.99027465]
[1750440869198,0.48138466,102830.0,102820.0,0.99027465]
[1750440870023,0.67393344,102830.0,102820.0,0.99027465]
[1750440870262,0.57866359,102830.0,102820.0,0.99027465]
[1750440870664,0.21694466,102830.0,102820.0,0.99027465]
[1750440870867,0.21694466,102830.0,102820.0,1.18600933]
[1750440871069,0.47282035,102830.0,102820.0,1.02349465]
[1750440871256,0.20222035,102830.0,102820.0,1.02349465]
[1750440871803,0.20222035,102830.0,102820.0,1.22773496]
[1750440872010,0.20022035,102830.0,102820.0,1.02349465]
[1750440872276,0.00972431,102830.0,102820.0,1.55225111]
[1750440872408,0.02044834,102830.0,102820.0,1.55347111]
[1750440872833,0.02044825,102830.0,102820.0,1.55347111]
[1750440873443,0.01072393,102830.0,102820.0,1.55347111]
[1750440873800,0.23439281,102830.0,102820.0,1.53402069]
[1750440874008,0.21494466,102830.0,102820.0,0.99027465]
[1750440874216,0.2578333,102830.0,102820.0,0.99027465]
[1750440874417,0.21494466,102830.0,102820.0,1.19573506]
[1750440874591,0.21494466,102830.0,102820.0,1.20546051]
[1750440874837,0.21494466,102830.0,102820.0,1.19573506]
[1750440874838,0.20522035,102830.0,102820.0,1.19573506]
[1750440875043,0.20522035,102830.0,102820.0,1.21518623]
[1750440875242,0.19549576,102830.0,102820.0,1.19573506]
[1750440875856,0.19549576,102830.0,102820.0,1.20546069]
[1750440876474,0.19549576,102830.0,102820.0,1.18600933]
[1750440876676,0.19549576,102830.0,102820.0,0.99027465]
[1750440877083,0.19549576,102830.0,102820.0,1.18478933]
[1750440877528,0.19549576,102830.0,102820.0,1.19451506]
[1750440877735,0.19549576,102830.0,102820.0,1.21518623]
[1750440877989,0.20522045,102830.0,102820.0,1.22491168]
[1750440878234,0.20522045,102830.0,102820.0,1.21518623]
[1750440878460,0.20522045,102830.0,102820.0,1.20546069]
[1750440878874,0.19549576,102830.0,102820.0,0.99149465]
[1750440880140,0.41491381,102840.0,102820.0,0.99149465]
[1750440880347,0.01944872,102830.0,102820.0,1.50830538]
[1750440880552,0.01944815,102830.0,102820.0,1.54000538]
[1750440880760,0.03889725,102830.0,102820.0,1.54000538]
[1750440881468,0.03889706,102830.0,102820.0,1.54000538]
[1750440881646,0.04862165,102830.0,102820.0,1.54000538]
[1750440881881,0.45661032,102850.0,102840.0,0.02066692]
[1750440881882,0.0194454,102850.0,102840.0,0.02066692]
[1750440882120,0.23342189,102860.0,102850.0,0.21390335]
[1750440882471,0.23342189,102860.0,102850.0,0.27862335]
[1750440882472,0.23337588,102860.0,102850.0,0.27862335]
[1750440882696,0.23337588,102860.0,102850.0,0.03292]
[1750440882697,0.20421099,102860.0,102850.0,0.03292]
[1750440882931,5e-05,102860.0,102850.0,0.26037794]
[1750440883191,0.03893572,102860.0,102850.0,0.28954548]
[1750440883429,0.24309671,102860.0,102850.0,0.28954548]
[1750440883676,0.22365432,102860.0,102850.0,0.27010074]
[1750440883918,0.21393275,102860.0,102850.0,0.00122]
[1750440884163,0.25476805,102860.0,102850.0,0.00122]
[1750440884406,0.20418074,102850.0,102840.0,0.2967]
[1750440884638,0.20418074,102850.0,102840.0,0.3257]
[1750440884885,0.20418074,102850.0,102840.0,0.06442]
[1750440885122,0.2042005,102840.0,102830.0,0.06412]
[1750440886311,0.2042005,102840.0,102830.0,0.00122]
[1750440886747,0.20422035,102830.0,102820.0,1.31297465]
[1750440887176,0.19447685,102840.0,102820.0,1.31297465]
[1750440887402,0.20422035,102830.0,102820.0,1.05309465]
[1750440887840,0.20422035,102830.0,102820.0,0.99149465]
[1750440888273,0.20422035,102830.0,102820.0,0.99349465]
[1750440888502,0.20422035,102830.0,102820.0,0.99227465]
[1750440888755,0.2548091,102830.0,102820.0,0.99227465]
[1750440889199,4.70931203,102830.0,102820.0,0.99227465]
[1750440889424,4.70931203,102830.0,102820.0,0.99327465]
[1750440889635,4.64007728,102830.0,102820.0,0.99327465]
[1750440890103,0.32871328,102830.0,102820.0,0.99327465]
[1750440890542,0.32871328,102830.0,102820.0,0.99227465]
[1750440891477,0.32971328,102830.0,102820.0,0.99027465]
[1750440891697,5.06767914,102830.0,102820.0,0.99027465]
[1750440891909,4.92753128,102830.0,102820.0,0.99027465]
[1750440892125,4.92765128,102830.0,102820.0,0.99027465]
[1750440892368,4.92965128,102830.0,102820.0,0.99027465]
[1750440892599,4.93165128,102830.0,102820.0,0.99027465]
[1750440893022,0.59107328,102830.0,102820.0,0.99027465]
[1750440893242,0.59107328,102830.0,102820.0,0.99149465]
[1750440893688,0.59107328,102830.0,102820.0,0.99027465]
[1750440893922,0.58907328,102830.0,102820.0,0.99027465]
[1750440894138,0.59207328,102830.0,102820.0,0.99027465]
[1750440894572,0.23543435,102830.0,102820.0,1.02269465]
[1750440894786,0.23543435,102830.0,102820.0,1.05289465]
[1750440895008,0.23743435,102830.0,102820.0,1.05289465]
[1750440895261,0.24715885,102830.0,102820.0,1.05289465]
[1750440895478,0.24715885,102830.0,102820.0,1.31009465]
[1750440895698,0.24715885,102830.0,102820.0,1.51433487]
[1750440895912,0.24715885,102830.0,102820.0,1.51433506]
[1750440896135,0.24715885,102830.0,102820.0,1.31009465]
[1750440896352,0.20581405,102830.0,102820.0,1.31009465]
[1750440896609,0.02104242,102830.0,102820.0,1.62906422]
[1750440896836,0.22366908,102830.0,102820.0,1.05289465]
[1750440897061,0.21394486,102830.0,102820.0,0.99149465]
[1750440897282,0.21394486,102830.0,102820.0,0.99249465]
[1750440898204,0.21394486,102830.0,102820.0,0.99549465]
[1750440898642,0.21394486,102830.0,102820.0,0.99430817]
[1750440900607,4.71631596,102830.0,102820.0,0.99308817]
[1750440901285,4.98980179,102830.0,102820.0,0.99308817]
[1750440901537,5.14992286,102830.0,102820.0,0.98993184]
[1750440901743,5.24520179,102830.0,102820.0,0.98893184]
[1750440902013,5.27760179,102830.0,102820.0,0.98593184]
[1750440902243,5.30860179,102830.0,102820.0,0.98593184]
[1750440902474,5.40487164,102830.0,102820.0,0.98593184]
[1750440902697,5.95761249,102830.0,102820.0,0.98593184]
[1750440902931,6.03044917,102830.0,102820.0,0.98593184]
[1750440903393,6.02844917,102830.0,102820.0,0.98593184]
[1750440903621,5.54124917,102830.0,102820.0,0.15328482]
[1750440903846,5.54324917,102830.0,102820.0,0.15328482]
[1750440904067,5.55035907,102820.0,102810.0,0.82028856]
[1750440904292,0.30426009,102810.0,102800.0,1.0001]
[1750440904512,5.4083337,102810.0,102800.0,1.0001]
[1750440904723,5.42287455,102810.0,102800.0,1.0001]
[1750440904940,5.5228834,102810.0,102800.0,0.38596988]
[1750440905163,5.4978834,102810.0,102800.0,0.38596988]
[1750440905399,5.0280988,102800.0,102790.0,0.0001]
[1750440905625,5.27045441,102800.0,102790.0,0.0001]
[1750440906270,4.9914676,102780.0,102770.0,0.0001]
[1750440906495,5.47011638,102780.0,102770.0,0.0001]
[1750440906737,5.52011638,102780.0,102770.0,0.0001]
[1750440906957,5.47011638,102780.0,102770.0,0.0001]
[1750440907180,5.52011638,102780.0,102770.0,0.0001]
[1750440907395,5.47011638,102780.0,102770.0,0.0001]
[1750440907661,5.38685638,102780.0,102770.0,0.0001]
[1750440907919,5.48685638,102780.0,102770.0,0.0001]
[1750440908383,5.43885638,102780.0,102770.0,0.0001]
[1750440908616,5.48885638,102780.0,102770.0,0.0001]
[1750440909750,5.51861461,102780.0,102770.0,0.0001]
[1750440910170,5.51812814,102780.0,102770.0,0.0001]
[1750440910382,5.50042814,102780.0,102770.0,0.0001]
[1750440910594,5.55042814,102780.0,102770.0,0.0001]
[1750440910812,5.29558814,102780.0,102770.0,0.0001]
[1750440911037,5.60560043,102780.0,102770.0,0.0001]
[1750440911256,5.65560043,102780.0,102770.0,0.0001]
[1750440911490,0.26765948,102760.0,102730.0,0.0154245]
[1750440911738,4.94471008,102740.0,102730.0,0.0154245]
[1750440911959,5.03998901,102740.0,102730.0,0.0154245]
[1750440912183,5.29370901,102740.0,102730.0,0.0154245]
[1750440912401,5.42154986,102740.0,102730.0,0.0154245]
[1750440912617,5.03692986,102740.0,102730.0,0.0154245]
[1750440912832,5.34048986,102740.0,102730.0,0.0154245]
[1750440913088,5.34048986,102740.0,102730.0,0.0174245]
[1750440913089,5.03692986,102740.0,102730.0,0.0174245]
[1750440913299,4.98998901,102740.0,102730.0,0.0174245]
[1750440913521,5.24322901,102740.0,102730.0,0.0174245]
[1750440913957,4.369821,102740.0,102730.0,0.0839445]
[1750440914188,0.04954421,102760.0,102750.0,0.00122]
[1750440914438,0.55612212,102760.0,102750.0,0.06652]
[1750440914643,0.517155,102760.0,102750.0,0.06652]
[1750440915297,0.05927514,102760.0,102750.0,0.28063144]
[1750440915515,0.06900579,102760.0,102750.0,0.30009492]
[1750440915724,0.30294421,102760.0,102750.0,0.30009492]
[1750440915941,0.06900552,102760.0,102750.0,0.30009492]
[1750440916147,0.04954421,102760.0,102750.0,0.30009492]
[1750440916362,0.24717247,102760.0,102750.0,0.06652]
[1750440916576,0.05254421,102760.0,102750.0,0.31745439]
[1750440916830,0.05254421,102760.0,102750.0,0.38564206]
[1750440917090,0.00972686,102800.0,102790.0,0.25425555]
[1750440917304,0.04867769,102810.0,102800.0,0.25423425]
[1750440917519,0.0291787,102810.0,102800.0,0.26690005]
[1750440917725,0.2237123,102810.0,102800.0,0.27662729]
[1750440917948,0.21398629,102810.0,102800.0,0.06262]
[1750440918186,0.21398629,102810.0,102800.0,0.03172]
[1750440918647,0.21698629,102810.0,102800.0,0.03172]
[1750440918851,0.55698629,102810.0,102800.0,0.03172]
[1750440919062,0.55698629,102810.0,102800.0,0.06402]
[1750440919522,0.55698629,102810.0,102800.0,0.03172]
[1750440919741,0.65226522,102810.0,102800.0,0.03172]
[1750440919960,0.65226522,102810.0,102800.0,0.0305]
[1750440920179,0.00972989,102770.0,102760.0,0.20557529]
[1750440920369,0.23352917,102770.0,102760.0,0.00122]
[1750440920619,0.21406996,102770.0,102760.0,0.06482]
[1750440920871,0.21406996,102770.0,102760.0,0.07537846]
[1750440921304,0.21406996,102770.0,102760.0,0.27000672]
[1750440921515,0.21409041,102760.0,102750.0,0.06582]
[1750440923265,0.21409041,102760.0,102750.0,0.03542]
[1750440923701,0.21409041,102760.0,102750.0,0.0352]
[1750440923920,0.29180936,102760.0,102750.0,0.0352]
[1750440924362,0.21409041,102760.0,102750.0,0.03842]
[1750440924608,0.21409041,102760.0,102750.0,0.06892]
[1750440924831,0.21409041,102760.0,102750.0,0.28003125]
[1750440925052,0.19460653,102780.0,102770.0,0.26048932]
[1750440925292,0.01945742,102780.0,102770.0,0.34568764]
[1750440925497,0.19458759,102790.0,102780.0,0.00118]
[1750440925498,0.22375649,102790.0,102780.0,0.00118]
[1750440925722,0.21402792,102790.0,102780.0,0.21522903]
[1750440925975,0.21406133,102800.0,102790.0,0.19575145]
[1750440926190,0.21400663,102800.0,102790.0,0.27017992]
[1750440926409,0.22373406,102800.0,102790.0,0.2799082]
[1750440926625,0.00972696,102800.0,102790.0,0.28963629]
[1750440926843,0.22371259,102810.0,102800.0,0.27908767]
[1750440927056,0.22371316,102810.0,102800.0,0.27908767]
[1750440927326,0.08744421,102820.0,102810.0,0.29781898]
[1750440927535,0.01945023,102820.0,102810.0,0.29781898]
[1750440927750,0.03890093,102820.0,102810.0,0.47778765]
[1750440927963,0.02917539,102820.0,102810.0,0.47778765]
[1750440928177,0.23341646,102820.0,102810.0,0.14906974]
[1750440928411,0.09716937,102820.0,102810.0,0.37278252]
[1750440928631,0.03889705,102830.0,102820.0,0.28709073]
[1750440928849,0.23339357,102830.0,102820.0,0.28827073]
[1750440929069,0.01944805,102830.0,102820.0,0.60573522]
[1750440929278,0.28191954,102840.0,102830.0,0.26880045]
[1750440929493,0.30136656,102840.0,102830.0,0.27852504]
[1750440929726,0.30136656,102840.0,102830.0,0.28824935]
[1750440929933,0.0971654,102840.0,102830.0,0.29797347]
[1750440930151,0.1166126,102840.0,102830.0,0.37311179]
[1750440930372,0.30136674,102840.0,102830.0,0.28824954]
[1750440930589,0.29164319,102840.0,102830.0,0.27852504]
[1750440930805,0.29264319,102840.0,102830.0,0.27852504]
[1750440931249,0.29264319,102840.0,102830.0,0.06458]
[1750440931462,0.28291954,102840.0,102830.0,0.03408]
[1750440931892,0.28291954,102840.0,102830.0,0.06628]
[1750440932380,0.21492405,102840.0,102830.0,0.31452389]
[1750440932600,0.01072327,102840.0,102830.0,0.42925135]
[1750440932831,0.02044626,102840.0,102830.0,0.42925154]
[1750440933052,0.22464732,102840.0,102830.0,0.40007832]
[1750440933268,0.21492405,102840.0,102830.0,0.06628]
[1750440933483,0.21492405,102840.0,102830.0,0.27050054]
[1750440933733,0.21492405,102840.0,102830.0,0.07658]
[1750440933963,0.292643,102840.0,102830.0,0.0432]
[1750440934173,0.21492405,102840.0,102830.0,0.0432]
[1750440934361,0.21492405,102840.0,102830.0,0.09836947]
[1750440934829,0.21492405,102840.0,102830.0,0.07448]
[1750440935282,0.292643,102840.0,102830.0,0.0733]
[1750440935511,0.292643,102840.0,102830.0,0.0432]
[1750440935729,0.632643,102840.0,102830.0,0.0432]
[1750440935937,0.632643,102840.0,102830.0,0.0103]
[1750440936399,5.06849993,102840.0,102830.0,0.0103]
[1750440936836,5.31677993,102840.0,102830.0,0.0103]
[1750440937515,0.80320405,102840.0,102830.0,0.07378]
[1750440937746,5.14378205,102840.0,102830.0,0.0407]
[1750440937964,5.23989098,102840.0,102830.0,0.0103]
[1750440939044,25.23989098,102840.0,102830.0,0.0103]
[1750440939256,25.23889098,102840.0,102830.0,0.0103]
[1750440939470,25.24089098,102840.0,102830.0,0.0103]
[1750440939935,25.27379098,102840.0,102830.0,0.0103]
[1750440940174,25.39079766,102840.0,102830.0,0.00056786]
[1750440940384,25.39079766,102840.0,102790.0,0.06398]
[1750440940385,0.2140071,102800.0,102790.0,0.06398]
[1750440940595,0.2140071,102800.0,102790.0,0.0309]
[1750440940806,0.2140071,102800.0,102790.0,0.03208]
[1750440941023,0.2140071,102800.0,102790.0,0.0309]
[1750440941713,0.20429983,102790.0,102780.0,0.03208]
[1750440942135,0.20429983,102790.0,102780.0,0.06248]
[1750440942596,0.20429983,102790.0,102780.0,0.03208]
[1750440942857,0.20429983,102790.0,102780.0,0.28625779]
[1750440942858,0.01945609,102790.0,102780.0,0.28625779]
[1750440943072,0.225219,102800.0,102790.0,0.27650792]